bitfinex-derivatives/quotes_ETHF0:USTF0_20250620
["timestamp","ask_amount","ask_price","bid_price","bid_amount"]
[1750400774060,30.99224,2524.2,2524.1,1.91229038]
[1750400774959,30.99224,2524.2,2524.1,1.3483]
[1750400775259,30.99224,2524.2,2524.1,0.56355442]
[1750400775565,0.79234,2523.9,2523.8,4.00015]
[1750400775767,30.2,2524.2,2523.8,13.82901286]
[1750400775968,30.2,2524.2,2524.1,7.9323]
[1750400776264,0.79231,2524.0,2523.9,1.3325]
[1750400776458,0.79231,2524.0,2523.9,1.89656043]
[1750400776658,0.79231,2524.0,2523.9,9.82886043]
[1750400777558,0.79231,2524.0,2523.9,10.62120043]
[1750400777959,0.79231,2524.0,2523.9,9.82254375]
[1750400778158,0.79231,2524.0,2523.9,9.2648]
[1750400778358,0.79231,2524.0,2523.9,10.61491534]
[1750400778563,30.19,2524.2,2523.9,9.82257534]
[1750400778762,30.98224,2524.2,2524.1,7.9323]
[1750400778965,35.198789,2524.2,2524.1,8.49007389]
[1750400779264,0.79231,2524.0,2523.9,0.79234]
[1750400779459,0.7923,2524.1,2523.9,2.70389279]
[1750400779665,0.79231,2524.0,2523.9,1.3538]
[1750400779867,0.79231,2524.0,2523.9,2.70386238]
[1750400780072,0.79231,2524.0,2523.9,10.63616238]
[1750400780855,0.79231,2524.0,2523.9,10.63620136]
[1750400781361,0.79231,2524.0,2523.9,10.63654688]
[1750400782469,0.79231,2524.0,2523.9,9.84420688]
[1750400783069,3.94872461,2524.0,2523.9,8.50947715]
[1750400783569,3.94872461,2524.0,2523.9,8.50968563]
[1750400783769,3.94872461,2524.0,2523.9,8.50968274]
[1750400784167,3.94872461,2524.0,2523.9,0.57741764]
[1750400784471,0.79234,2523.9,2523.8,3.2078]
[1750400784671,0.79234,2523.9,2523.8,3.7852234]
[1750400784872,0.79234,2523.9,2523.8,11.7175234]
[1750400785063,1.85406746,2523.9,2523.8,3.7852234]
[1750400785264,2.50196746,2523.9,2523.8,3.7852234]
[1750400785573,26.52696746,2523.9,2523.8,3.7852234]
[1750400785967,26.52696746,2523.9,2523.8,3.78541511]
[1750400786167,26.52696746,2523.9,2523.8,3.2078]
[1750400786363,26.52696746,2523.9,2523.8,3.78541512]
[1750400786563,25.73462746,2523.9,2523.8,3.78541512]
[1750400786774,25.73462746,2523.9,2523.8,3.81578063]
[1750400786964,26.52696746,2523.9,2523.8,3.81578063]
[1750400787163,26.52696746,2523.9,2523.8,3.2078]
[1750400787372,26.52696746,2523.9,2523.8,3.81549619]
[1750400787571,26.52696746,2523.9,2523.8,3.2078]
[1750400787986,0.79245,2523.6,2523.5,3.2078]
[1750400788467,3.94886461,2523.6,2523.5,0.60138963]
[1750400788770,29.0364085,2523.6,2523.5,0.60138963]
[1750400789077,0.79246,2523.5,2523.4,0.6903]
[1750400789269,0.79246,2523.5,2523.4,1.29180708]
[1750400789575,0.79246,2523.5,2523.4,1.29180938]
[1750400790366,0.79246,2523.5,2523.4,1.29181169]
[1750400790566,0.79246,2523.5,2523.4,0.60151169]
[1750400790769,1.8543117,2523.5,2523.4,0.60151169]
[1750400791571,0.79253,2523.4,2523.2,4.67226]
[1750400791772,0.79253,2523.4,2523.3,7.9323]
[1750400792679,0.79253,2523.4,2523.3,8.46703194]
[1750400792867,0.79253,2523.4,2523.3,8.4670317]
[1750400793270,0.79253,2523.4,2523.3,9.2595617]
[1750400793569,0.79253,2523.4,2523.3,8.72483]
[1750400793771,0.79253,2523.4,2523.3,9.25929991]
[1750400793967,0.79249,2523.5,2523.3,9.25923362]
[1750400794172,0.7925,2523.4,2523.3,7.9323]
[1750400794471,0.7925,2523.4,2523.3,8.46670945]
[1750400794869,0.79249,2523.5,2523.3,9.25923945]
[1750400795074,0.79249,2523.5,2523.4,0.53440945]
[1750400795475,0.79249,2523.5,2523.3,0.79253]
[1750400795678,0.79249,2523.5,2523.4,0.53728294]
[1750400797078,0.79251,2523.4,2523.2,4.67224]
[1750400797267,0.79251,2523.4,2523.3,8.46940015]
[1750400798179,0.79251,2523.4,2523.3,0.53710015]
[1750400798679,0.79253,2523.3,2523.2,3.8797]
[1750400798882,10.11194461,2523.3,2523.2,4.41740036]
[1750400799179,10.11194461,2523.3,2523.2,3.7452947]
[1750400799367,0.79265,2522.9,2522.8,3.2078]
[1750400799571,10.11206461,2522.9,2522.8,3.2078]
[1750400799877,34.14106461,2522.9,2522.8,3.2078]
[1750400800379,30.192,2522.9,2522.8,4.00048]
[1750400801081,30.98465,2522.9,2522.8,4.00048]
[1750400801286,30.98465,2522.9,2522.8,3.2078]
[1750400802687,30.98465,2522.9,2522.8,4.00048]
[1750400802889,0.79259,2523.1,2523.0,0.7926]
[1750400803091,0.79259,2523.1,2523.0,8.7249]
[1750400803092,30.193,2523.1,2523.0,8.7249]
[1750400803378,30.98559,2523.1,2523.0,8.7249]
[1750400803574,30.98559,2523.1,2523.0,9.2881]
[1750400803982,0.79262,2523.0,2522.9,0.69]
[1750400804180,0.79262,2523.0,2522.9,8.6223]
[1750400804980,0.79262,2523.0,2522.9,9.41495]
[1750400805383,0.79262,2523.0,2522.9,8.6223]
[1750400806284,34.14202461,2523.1,2522.9,9.41495]
[1750400806481,34.14202461,2523.1,2522.9,8.6223]
[1750400806879,34.14202461,2523.1,2523.0,0.79262]
[1750400807081,33.34941461,2523.1,2522.9,9.41494]
[1750400807285,34.14202461,2523.1,2522.9,9.41494]
[1750400807984,0.79262,2523.0,2522.9,9.41494]
[1750400808186,0.79262,2523.0,2522.9,8.6223]
[1750400809588,0.79262,2523.0,2522.9,9.41495]
[1750400811495,0.79262,2523.0,2522.9,8.6223]
[1750400811880,0.79262,2523.0,2522.9,9.41495]
[1750400812184,0.79262,2523.0,2522.9,8.6223]
[1750400812982,3.15641461,2523.1,2522.9,8.6223]
[1750400813190,0.79255,2523.3,2523.0,11.9327]
[1750400813382,24.82555,2523.3,2523.1,7.9323]
[1750400813583,1.06554639,2523.2,2523.1,10.04719]
[1750400813783,1.06554639,2523.2,2523.1,9.2546]
[1750400814082,25.09854639,2523.2,2523.1,9.2546]
[1750400814687,25.89110639,2523.2,2523.1,9.2546]
[1750400816087,1.06554639,2523.2,2523.1,10.04719]
[1750400816288,24.033,2523.3,2523.1,10.04719]
[1750400816491,24.033,2523.3,2523.2,9.2546]
[1750400816787,24.82553,2523.3,2523.2,9.2546]
[1750400817187,25.89198429,2523.3,2523.2,9.2546]
[1750400819590,0.79259,2523.1,2522.9,3.2078]
[1750400819890,4.2228689,2523.3,2523.1,7.9323]
[1750400819891,0.79258,2523.2,2523.1,7.9323]
[1750400820090,1.8592879,2523.2,2523.1,7.9323]
[1750400820496,1.0667079,2523.2,2523.1,7.9323]
[1750400820992,1.8592679,2523.2,2523.1,7.9323]
[1750400821496,1.8592679,2523.2,2523.1,9.2775]
[1750400821891,1.0667079,2523.2,2523.1,9.2775]
[1750400822096,1.0667079,2523.2,2523.1,10.07009]
[1750400824988,1.8592679,2523.2,2523.1,10.07009]
[1750400825393,1.8592679,2523.2,2523.1,9.2775]
[1750400825984,1.0667079,2523.2,2523.1,10.07009]
[1750400826994,1.06774476,2523.2,2523.1,10.07009]
[1750400831791,1.06774476,2523.2,2523.1,9.2775]
[1750400831997,1.06774476,2523.2,2523.1,10.07009]
[1750400847700,1.06774476,2523.2,2523.1,8.72489]
[1750400854095,4.22415937,2523.2,2523.1,0.79259]
[1750400854300,5.01672937,2523.2,2523.0,0.7926]
[1750400854502,25.72154476,2523.1,2523.0,0.7926]
[1750400855806,25.09574476,2523.1,2523.0,0.7926]
[1750400857006,25.09574476,2523.1,2523.0,1.4206]
[1750400857408,1.06774476,2523.1,2523.0,9.3529]
[1750400857607,30.185,2523.2,2523.1,0.79259]
[1750400857804,31.25365089,2523.2,2523.1,8.72489]
[1750400860106,30.185,2523.2,2523.1,8.72489]
[1750400860500,31.25360051,2523.2,2523.1,8.72489]
[1750400864221,31.25360051,2523.2,2523.1,10.09209]
[1750400864222,1.06860051,2523.2,2523.1,10.09209]
[1750400864411,25.09560051,2523.2,2523.1,10.09209]
[1750400864825,24.027,2523.2,2523.1,10.09209]
[1750400865518,25.09546637,2523.2,2523.1,10.09209]
[1750400867023,1.06846637,2523.2,2523.1,10.09209]
[1750400878836,1.06846637,2523.2,2523.1,8.72489]
[1750400879823,1.06846637,2523.2,2523.1,10.06459]
[1750400881732,1.06846637,2523.2,2523.1,8.72489]
[1750400885837,1.06846637,2523.2,2522.9,3.2078]
[1750400886033,4.9318915,2523.1,2522.9,3.2078]
[1750400886234,1.86017661,2523.0,2522.8,0.79269]
[1750400886434,1.86017661,2523.0,2522.7,9.3748]
[1750400886435,4.37373174,2522.9,2522.7,9.3748]
[1750400886635,3.30618513,2522.9,2522.7,9.3748]
[1750400887836,2.51352513,2522.9,2522.8,0.79269]
[1750400888038,3.58104857,2522.9,2522.8,0.79269]
[1750400888833,1.06752344,2522.9,2522.8,0.79269]
[1750400890133,1.86018344,2522.9,2522.7,1.44251]
[1750400890431,1.06757979,2522.8,2522.7,1.44251]
[1750400891041,1.86026979,2522.8,2522.7,0.6498]
[1750400891331,33.23247191,2522.8,2522.6,3.2078]
[1750400891531,2.49160979,2522.7,2522.6,3.2078]
[1750400891725,3.13930979,2522.7,2522.6,3.2078]
[1750400891929,1.06757979,2522.7,2522.6,11.93286]
[1750400892328,1.06757979,2522.7,2522.6,15.07575212]
[1750400892535,1.06757979,2522.7,2522.6,16.38475212]
[1750400893236,6.155,2522.9,2522.8,0.79269]
[1750400893437,7.22230266,2522.9,2522.8,0.79269]
[1750400896936,7.85510266,2522.9,2522.8,0.79269]
[1750400897445,8.64776266,2522.9,2522.7,4.68422]
[1750400897738,1.06730266,2522.8,2522.7,4.68422]
[1750400899242,1.06730266,2522.8,2522.7,12.61652]
[1750400905147,1.85999266,2522.8,2522.7,3.8915]
[1750400905349,5.00288478,2522.8,2522.7,0.6837]
[1750400906039,4.21019478,2522.8,2522.4,4.0006]
[1750400906245,3.14289212,2522.6,2522.4,3.8441]
[1750400906548,3.93566212,2522.6,2522.4,12.56921]
[1750400906742,29.23244212,2522.7,2522.4,12.56921]
[1750400906942,29.23244212,2522.7,2522.5,0.79278]
[1750400909055,29.23244212,2522.7,2522.4,4.6369]
[1750400909246,29.23244212,2522.7,2522.4,12.5692]
[1750400909447,0.79276,2522.6,2522.4,12.5692]
[1750400909648,6.94679,2522.5,2522.4,11.7764]
[1750400909848,6.154,2522.5,2522.4,12.56922]
[1750400910148,10.08968212,2522.5,2522.4,3.8441]
[1750400910345,10.36309074,2522.5,2522.1,3.8972]
[1750400910550,0.79288,2522.2,2522.1,11.1401]
[1750400910851,3.93576212,2522.3,2522.1,11.1401]
[1750400911053,3.93576212,2522.3,2522.1,11.93301]
[1750400911354,3.14289212,2522.3,2522.1,11.93301]
[1750400911554,3.14289212,2522.3,2522.2,0.79288]
[1750400911847,3.14289212,2522.3,2522.2,1.47598]
[1750400911848,1.06602756,2522.3,2522.2,1.47598]
[1750400912052,4.47509212,2522.7,2522.4,0.79281]
[1750400912243,1.85863411,2522.6,2522.5,0.6831]
[1750400912442,32.03763411,2522.6,2522.5,0.6831]
[1750400913746,1.85863411,2522.6,2522.5,0.6831]
[1750400913948,32.03763411,2522.6,2522.5,0.6831]
[1750400914146,31.24486411,2522.6,2522.5,0.6831]
[1750400914348,32.03762411,2522.6,2522.5,0.6831]
[1750400918556,0.79279,2522.5,2522.3,0.79283]
[1750400918757,25.09186411,2522.4,2522.3,8.72513]
[1750400919255,25.88468411,2522.4,2522.3,7.9323]
[1750400919455,25.09186411,2522.4,2522.3,8.72515]
[1750400921249,25.09186411,2522.4,2522.3,0.79285]
[1750400922861,24.026,2522.4,2522.3,0.79285]
[1750400923058,25.09256855,2522.4,2522.3,0.79285]
[1750400925560,1.06656855,2522.4,2522.3,0.79285]
[1750400925858,25.09256855,2522.4,2522.3,4.00065]
[1750400926058,25.09256855,2522.4,2522.3,5.33525]
[1750400926258,25.88538855,2522.4,2522.3,5.33525]
[1750400926459,25.09256855,2522.4,2522.3,5.33525]
[1750400926860,25.88538855,2522.4,2522.3,5.33525]
[1750400927061,25.09256855,2522.4,2522.3,5.33525]
[1750400927360,25.09256855,2522.4,2522.3,13.26755]
[1750400927561,25.88538855,2522.4,2522.3,13.26755]
[1750400928059,25.09256855,2522.4,2522.3,11.93295]
[1750400928866,25.88538855,2522.4,2522.3,11.93295]
[1750400929055,25.09256855,2522.4,2522.3,11.93295]
[1750400929756,25.88538855,2522.4,2522.3,11.93295]
[1750400930856,25.88538855,2522.4,2522.3,11.1401]
[1750400931760,25.09256855,2522.4,2522.3,11.93295]
[1750400932565,25.88538855,2522.4,2522.3,11.93295]
[1750400934163,25.88538855,2522.4,2522.3,11.1401]
[1750400934369,0.79288,2522.2,2521.7,3.2078]
[1750400934570,28.30036855,2522.4,2521.7,3.2078]
[1750400934571,3.14289212,2522.0,2521.9,7.9323]
[1750400934868,27.96084212,2522.0,2521.9,7.9323]
[1750400935058,25.88407423,2522.0,2521.9,7.9323]
[1750400935458,32.23476635,2522.0,2521.9,7.9323]
[1750400935664,32.88826635,2522.0,2521.9,7.9323]
[1750400936366,0.79299,2521.9,2521.7,1.45324]
[1750400936558,0.79299,2521.9,2521.8,1.3282]
[1750400936759,1.06606188,2521.9,2521.8,10.05351]
[1750400937263,28.67925,2522.0,2521.8,10.05351]
[1750400937458,28.67925,2522.0,2521.9,7.9323]
[1750400937657,28.95225661,2522.0,2521.9,8.5637]
[1750400937858,29.74520661,2522.0,2521.9,0.6314]
[1750400938670,28.95225661,2522.0,2521.9,1.42438]
[1750400938866,28.95225661,2522.0,2521.9,0.6314]
[1750400939060,29.74520661,2522.0,2521.9,0.6314]
[1750400940565,28.95225661,2522.0,2521.9,1.42438]
[1750400940763,28.95225661,2522.0,2521.9,9.35668]
[1750400940764,4.27375661,2522.0,2521.9,9.35668]
[1750400940965,4.27375661,2522.0,2521.9,12.49957212]
[1750400941362,1.06595661,2522.0,2521.9,12.49957212]
[1750400943173,3.2078,2522.3,2522.2,0.79288]
[1750400943377,34.45329271,2522.3,2522.2,8.72518]
[1750400943766,34.45329271,2522.3,2522.2,10.63438]
[1750400955781,10.42729271,2522.3,2522.2,10.63438]
[1750400956080,34.45129271,2522.3,2522.2,10.63438]
[1750400964283,35.24414271,2522.3,2522.2,10.63438]
[1750400965076,34.45129271,2522.3,2522.2,10.63438]
[1750400965294,35.24414271,2522.3,2522.2,10.63438]
[1750400965494,35.24414271,2522.3,2522.2,9.8415]
[1750400965697,35.24414271,2522.3,2522.2,10.63438]
[1750400966202,5.06714271,2522.3,2522.2,10.63438]
[1750400966502,35.24014271,2522.3,2522.2,10.63438]
[1750400966704,34.44729271,2522.3,2522.2,10.63438]
[1750400966901,36.96274517,2522.3,2522.2,10.63438]
[1750400967606,37.75559517,2522.3,2522.2,8.5661]
[1750400968994,37.75559517,2522.3,2522.2,7.9323]
[1750400970808,10.42529271,2522.3,2522.2,8.72518]
[1750400971013,34.44529271,2522.3,2522.2,8.72518]
[1750400971215,35.23814271,2522.3,2522.2,7.9323]
[1750400971402,35.87154271,2522.3,2522.2,7.9323]
[1750400972606,36.53934271,2522.3,2522.2,7.9323]
[1750400974509,9.31154271,2522.3,2522.2,7.9323]
[1750400974712,33.33154271,2522.3,2522.2,7.9323]
[1750400975310,33.33154271,2522.3,2522.1,0.79289]
[1750400975511,32.26505,2522.3,2522.2,7.9323]
[1750400975709,33.32876141,2522.3,2522.2,7.9323]
[1750400975908,33.32876141,2522.3,2522.1,0.79289]
[1750400976109,32.26505,2522.3,2522.2,7.9323]
[1750400976409,33.3287566,2522.3,2522.2,7.9323]
[1750400976610,33.3287566,2522.3,2522.1,0.79289]
[1750400976910,32.26505,2522.3,2522.2,7.9323]
[1750400977108,33.32876504,2522.3,2522.2,7.9323]
[1750400977304,33.32876504,2522.3,2522.1,0.79289]
[1750400977613,32.26505,2522.3,2522.2,7.9323]
[1750400977797,36.53657154,2522.3,2522.2,7.9323]
[1750400978004,0.79293,2522.1,2521.9,2.07717]
[1750400978306,1.06372154,2522.0,2521.8,0.6899]
[1750400978511,5.70569154,2522.0,2521.9,7.9323]
[1750400979005,5.70569154,2522.0,2521.8,1.4829]
[1750400979206,4.64197,2522.0,2521.9,7.9323]
[1750400979510,29.72455411,2522.0,2521.9,7.9323]
[1750400979705,29.72455411,2522.0,2521.8,1.4829]
[1750400979908,27.868,2522.0,2521.9,8.72528]
[1750400980102,28.93132491,2522.0,2521.9,8.72528]
[1750400980303,28.29012491,2522.0,2521.9,8.72528]
[1750400980505,31.23232491,2522.0,2521.9,10.05118]
[1750400982616,32.02527491,2522.0,2521.9,10.05118]
[1750400982816,6.94393,2522.1,2522.0,0.79295]
[1750400983007,32.02503292,2522.1,2522.0,8.72525]
[1750400983716,31.23210292,2522.1,2522.0,8.72525]
[1750400983910,1.06310292,2522.1,2522.0,8.72525]
[1750400984211,31.23210292,2522.1,2522.0,8.72525]
[1750400985419,32.02502292,2522.1,2522.0,8.72525]
[1750400985716,1.06310292,2522.1,2522.0,8.72525]
[1750400986014,31.23210292,2522.1,2522.0,8.72525]
[1750400991323,25.08010292,2522.1,2522.0,8.72525]
[1750400991523,25.08010292,2522.1,2522.0,9.37805]
[1750400991725,1.06310292,2522.1,2522.0,9.37805]
[1750400991923,25.08010292,2522.1,2522.0,12.52242077]
[1750400993721,1.06310292,2522.1,2522.0,12.52242077]
[1750400995928,3.2078,2522.6,2522.5,0.79279]
[1750400996128,33.3708,2522.6,2522.5,0.79279]
[1750400997926,34.16356,2522.6,2522.5,0.79279]
[1750400999034,34.16356,2522.6,2522.4,1.45691]
[1750400999233,34.16356,2522.6,2522.5,7.9323]
[1750400999733,7.14493077,2522.6,2522.4,0.6641]
[1750400999929,7.14493077,2522.6,2522.5,7.9323]
[1750401000230,37.30595077,2522.6,2522.4,0.6641]
[1750401000428,37.30595077,2522.6,2522.5,7.9323]
[1750401000629,0.79279,2522.5,2522.4,7.9323]
[1750401002740,37.30595077,2522.6,2522.4,7.9323]
[1750401002930,0.79279,2522.5,2522.4,7.9323]
[1750401003332,0.79283,2522.4,2522.2,0.79286]
[1750401003534,24.80585,2522.3,2522.1,1.43541]
[1750401004037,24.80585,2522.3,2522.2,7.9323]
[1750401005939,24.80585,2522.3,2522.2,8.72518]
[1750401006140,24.80585,2522.3,2522.2,7.9323]
[1750401007442,28.66165,2522.3,2522.2,7.9323]
[1750401007942,29.71757038,2522.3,2522.2,7.9323]
[1750401009436,29.71757038,2522.3,2522.0,0.79293]
[1750401009437,0.7929,2522.2,2522.0,0.79293]
[1750401009637,24.01,2522.1,2522.0,0.79293]
[1750401010240,24.80292,2522.1,2522.0,7.9323]
[1750401010641,24.80292,2522.1,2522.0,8.72525]
[1750401010834,24.80292,2522.1,2522.0,7.9323]
[1750401012439,25.43112,2522.1,2522.0,7.9323]
[1750401013437,25.43112,2522.1,2522.0,8.72525]
[1750401013638,25.43112,2522.1,2522.0,7.9323]
[1750401013842,24.01,2522.1,2522.0,8.72525]
[1750401014339,24.80292,2522.1,2522.0,8.72525]
[1750401014945,0.79292,2522.1,2522.0,8.72525]
[1750401015242,24.80192,2522.1,2522.0,8.72525]
[1750401017438,24.80192,2522.1,2522.0,7.9323]
[1750401017838,25.86211006,2522.1,2522.0,7.9323]
[1750401018847,25.86214954,2522.1,2522.0,7.9323]
[1750401019151,25.86214954,2522.1,2521.6,1.3709]
[1750401019152,25.06922954,2522.1,2521.6,1.3709]
[1750401019443,0.79303,2521.8,2521.7,0.79303]
[1750401019643,24.80103,2521.8,2521.6,1.45665]
[1750401019845,24.80103,2521.8,2521.7,7.9323]
[1750401020145,30.94803,2521.8,2521.7,8.72534]
[1750401020340,30.155,2521.8,2521.5,0.7931]
[1750401020546,4.89420904,2521.7,2521.5,0.7931]
[1750401020753,24.80109,2521.6,2521.5,0.7931]
[1750401020940,24.80109,2521.6,2521.5,8.7254]
[1750401021135,24.80109,2521.6,2521.5,7.9323]
[1750401021343,0.79315,2521.4,2521.0,3.2078]
[1750401021550,24.80115,2521.4,2521.2,0.79317]
[1750401021745,24.80115,2521.4,2521.3,7.9323]
[1750401022045,24.80115,2521.4,2521.3,8.72547]
[1750401022245,30.94315,2521.4,2521.3,7.9323]
[1750401022450,30.94315,2521.4,2521.3,8.72547]
[1750401022748,30.15,2521.4,2521.3,8.72547]
[1750401022948,6.142,2521.4,2521.3,8.72547]
[1750401023149,30.15,2521.4,2521.3,8.72547]
[1750401023344,30.153,2521.4,2521.3,8.72547]
[1750401023544,30.94614,2521.4,2521.3,8.72547]
[1750401024046,30.153,2521.4,2521.3,8.72547]
[1750401024247,30.94614,2521.4,2521.3,7.9323]
[1750401024435,30.153,2521.4,2521.3,8.72547]
[1750401024839,24.009,2521.4,2521.3,8.72547]
[1750401025747,0.79309,2521.6,2521.5,0.79309]
[1750401025953,30.152,2521.6,2521.5,8.72539]
[1750401026246,30.94507,2521.6,2521.5,8.72539]
[1750401026642,4.69046,2521.7,2521.6,0.79307]
[1750401026843,34.15486,2521.7,2521.6,8.72537]
[1750401027045,34.15486,2521.7,2521.6,7.9323]
[1750401027558,34.15486,2521.7,2521.6,9.38997]
[1750401027850,33.3618,2521.7,2521.6,9.38997]
[1750401028039,34.15484,2521.7,2521.6,9.38997]
[1750401028245,33.3618,2521.7,2521.6,9.38997]
[1750401028553,33.3608,2521.7,2521.6,9.38997]
[1750401029148,3.2078,2521.7,2521.6,9.38997]
[1750401029653,33.3618,2521.7,2521.6,9.38997]
[1750401029953,3.2078,2521.7,2521.6,9.38997]
[1750401031248,3.2078,2521.7,2521.6,10.76117]
[1750401033955,4.00084,2521.7,2521.6,10.76117]
[1750401034151,3.2078,2521.7,2521.6,10.76117]
[1750401043254,3.2078,2521.7,2521.6,13.90554077]
[1750401045676,6.35217077,2521.7,2521.6,7.9323]
[1750401046374,7.14523077,2521.7,2521.6,0.79307]
[1750401047373,0.79309,2521.6,2521.5,0.79308]
[1750401047979,7.14523077,2521.7,2521.6,0.79307]
[1750401048175,7.14523077,2521.7,2521.6,8.72537]
[1750401048475,7.14523077,2521.7,2521.6,0.79307]
[1750401049972,6.35217077,2521.7,2521.6,0.79307]
[1750401051273,3.2078,2521.7,2521.6,0.79307]
[1750401055881,6.14,2522.1,2522.0,0.79293]
[1750401056082,8.00397396,2522.1,2522.0,0.79293]
[1750401056383,7.21103396,2522.1,2522.0,4.00073]
[1750401056770,1.07103396,2522.1,2522.0,4.00073]
[1750401060284,4.21540473,2522.1,2521.9,0.79296]
[1750401060479,1.86398396,2522.0,2521.9,7.9323]
[1750401061875,1.07103396,2522.0,2521.7,0.79303]
[1750401062185,5.27435077,2521.9,2521.8,7.9323]
[1750401062383,5.55240473,2521.9,2521.8,8.72531]
[1750401062681,5.55240473,2521.9,2521.8,0.79301]
[1750401062889,4.21540473,2521.9,2521.8,0.79301]
[1750401064186,1.86401396,2521.9,2521.8,0.79301]
[1750401064391,5.00841473,2521.9,2521.7,0.79302]
[1750401064584,3.93738077,2521.9,2521.8,8.72531]
[1750401064884,0.79301,2521.8,2521.7,0.79301]
[1750401065285,0.79301,2521.8,2521.7,8.72531]
[1750401065780,3.93737077,2521.9,2521.8,0.79301]
[1750401066087,5.00858243,2521.9,2521.8,8.72531]
[1750401066282,0.79302,2521.8,2521.7,0.79302]
[1750401066783,0.79302,2521.8,2521.7,8.72532]
[1750401066985,1.47622,2521.8,2521.7,7.9323]
[1750401068287,7.61622,2521.8,2521.7,7.9323]
[1750401068484,8.68792589,2521.8,2521.7,7.9323]
[1750401068685,7.89490589,2521.8,2521.6,3.2078]
[1750401068890,0.79311,2521.5,2521.4,0.79312]
[1750401069091,0.79309,2521.6,2521.5,8.7254]
[1750401069290,0.79311,2521.5,2521.4,0.79311]
[1750401069491,0.79311,2521.5,2521.4,7.9323]
[1750401069790,0.79311,2521.5,2521.4,0.79313]
[1750401069989,0.79313,2521.5,2521.3,4.00095]
[1750401070181,0.6637,2521.4,2521.3,4.00095]
[1750401070589,0.6637,2521.4,2521.3,11.93325]
[1750401070791,1.45684,2521.4,2521.3,11.93325]
[1750401070977,1.45684,2521.4,2521.3,11.1401]
[1750401071384,0.6637,2521.4,2521.3,11.93327]
[1750401071586,1.45684,2521.4,2521.3,3.2078]
[1750401071788,1.9253,2521.7,2521.5,0.79309]
[1750401072090,31.8792182,2521.6,2521.5,0.79309]
[1750401072692,1.0715182,2521.6,2521.5,8.72539]
[1750401072894,0.6762,2521.7,2521.6,0.79307]
[1750401073088,1.07141574,2521.7,2521.6,11.93317]
[1750401073290,1.07141574,2521.7,2521.6,13.86817]
[1750401076197,1.86445574,2521.7,2521.6,13.86817]
[1750401076383,1.07141574,2521.7,2521.6,13.86817]
[1750401077196,1.86445574,2521.7,2521.6,13.86817]
[1750401077495,1.07141574,2521.7,2521.6,13.86817]
[1750401077997,1.86445574,2521.7,2521.6,13.86817]
[1750401078390,1.86445574,2521.7,2521.6,13.0751]
[1750401078996,1.86445574,2521.7,2521.6,11.8166]
[1750401079189,1.86445574,2521.7,2521.6,12.60967]
[1750401079797,1.07141574,2521.7,2521.6,12.60967]
[1750401082800,5.00882651,2521.7,2521.6,3.8843]
[1750401083000,5.00882651,2521.7,2521.6,3.2078]
[1750401083300,5.64232651,2521.7,2521.6,3.2078]
[1750401083499,5.64232651,2521.7,2521.6,4.00087]
[1750401083797,5.64232651,2521.7,2521.6,3.2078]
[1750401084200,2.49795574,2521.7,2521.6,3.2078]
[1750401085201,0.79307,2521.6,2521.5,0.7931]
[1750401085590,0.79307,2521.6,2521.5,8.7254]
[1750401085797,1.42657,2521.7,2521.5,8.7254]
[1750401085997,1.42657,2521.7,2521.6,7.9323]
[1750401086199,2.49653194,2521.7,2521.6,7.9323]
[1750401086397,0.79307,2521.6,2521.5,0.7931]
[1750401086596,1.42656,2521.7,2521.6,8.72537]
[1750401086804,2.49654006,2521.7,2521.6,8.72537]
[1750401087002,2.49654006,2521.7,2521.6,0.79307]
[1750401087704,0.79307,2521.6,2521.5,0.79308]
[1750401088003,1.86330959,2521.6,2521.5,0.79311]
[1750401088204,1.86330959,2521.6,2521.5,8.72541]
[1750401089099,1.07023959,2521.6,2521.5,8.72541]
[1750401089897,1.07023959,2521.6,2521.5,10.09181]
[1750401091808,1.07023959,2521.6,2521.5,2.15951]
[1750401092806,1.07023959,2521.6,2521.5,0.79311]
[1750401093001,1.86330959,2521.6,2521.5,0.79311]
[1750401093203,1.86330959,2521.6,2521.4,0.6329]
[1750401093401,0.79307,2521.6,2521.5,7.9323]
[1750401093601,1.86375427,2521.6,2521.5,7.9323]
[1750401093811,0.79312,2521.5,2521.3,4.68905]
[1750401094306,0.79312,2521.5,2521.4,7.9323]
[1750401094612,1.86382908,2521.5,2521.4,7.9323]
[1750401094812,1.86382908,2521.5,2521.4,8.72544]
[1750401095010,1.86382908,2521.5,2521.4,0.79314]
[1750401095403,1.07070908,2521.5,2521.4,0.79314]
[1750401096710,1.07070908,2521.5,2521.4,2.12364]
[1750401097812,1.07070908,2521.5,2521.3,4.68905]
[1750401098014,0.79311,2521.5,2521.4,7.9323]
[1750401098212,1.86408373,2521.5,2521.4,7.9323]
[1750401098511,1.07097373,2521.5,2521.3,4.68905]
[1750401098713,0.79311,2521.5,2521.4,7.9323]
[1750401098908,1.86420233,2521.5,2521.4,7.9323]
[1750401099214,0.79314,2521.4,2521.3,3.8959]
[1750401099513,4.56101077,2521.4,2521.3,11.8282]
[1750401101113,4.56101077,2521.4,2521.3,12.62137]
[1750401101517,4.56101077,2521.4,2521.3,4.68907]
[1750401101812,4.56101077,2521.4,2521.3,3.8959]
[1750401102315,4.56101077,2521.4,2521.3,3.2078]
[1750401103514,4.56101077,2521.4,2521.3,4.00097]
[1750401104516,3.14437077,2521.6,2521.4,0.79314]
[1750401104715,1.07096361,2521.5,2521.4,2.68534]
[1750401105312,1.07096361,2521.5,2521.4,1.43484]
[1750401105914,1.86407361,2521.5,2521.4,1.43484]
[1750401106114,1.07096361,2521.5,2521.4,1.43484]
[1750401107120,1.86407361,2521.5,2521.4,1.43484]
[1750401107318,1.07096361,2521.5,2521.4,1.43484]
[1750401107919,1.86407361,2521.5,2521.4,1.43484]
[1750401108718,1.86407361,2521.5,2521.4,0.6417]
[1750401109319,1.07096361,2521.5,2521.4,1.43484]
[1750401111023,1.07096361,2521.5,2521.4,10.65164]
[1750401112525,6.136,2521.6,2521.5,0.79311]